Date,Expense Type,Expense Area,Supplier,Transaction Number,Amount �,Description
01/11/2012,IT,Registration,Adapto,97662,"3,840.00",Specialist IT
13/11/2012,Legal & Professional,Professional Standards,Bevan Brittan LLP,97507,"2,655.60",Professional Conduct Committee
13/11/2012,Legal & Professional,Professional Standards,Bevan Brittan LLP,97509,554.40,Professional Conduct Committee
13/11/2012,Legal & Professional,Professional Standards,Bevan Brittan LLP,97510,"2,520.00",Professional Conduct Committee
29/11/2012,Legal & Professional,Professional Standards,Bevan Brittan LLP,97980,571.20,Professional Conduct Committee
29/11/2012,Legal & Professional,Professional Standards,Bevan Brittan LLP,97981,"6,048.00",Professional Conduct Committee
29/11/2012,Legal & Professional,Professional Standards,Bevan Brittan LLP,97985,604.80,Professional Conduct Committee
29/11/2012,Legal & Professional,Professional Standards,Bevan Brittan LLP,97988,849.60,Professional Conduct Committee
30/11/2012,Legal & Professional,Professional Standards,Bevan Brittan LLP,97989,"2,400.00",Professional Conduct Committee
13/11/2012,Legal & Professional,Professional Standards,Bevan Brittan LLP,100433,"2,528.40",Professional Conduct Committee
13/11/2012,Legal & Professional,Professional Standards,Bevan Brittan LLP,100434,"2,085.72",Professional Conduct Committee
13/11/2012,Legal & Professional,Professional Standards,Bevan Brittan LLP,100435,"2,167.20",Professional Conduct Committee
09/11/2012,IT,Corporate,Bighand Ltd,97469,714.00,Digital dictation
30/11/2012,Facilities,Overheads,Bee Services,97682,"1,754.42",Office Cleaning
06/11/2012,Scanning,Overheads,Capita Business Services,97431,"1,411.39",Document Scanning
21/11/2012,Exhibitions,Corporate,Centaur Exhibitions Ltd,98027,"1,189.44",Exhibitions
01/11/2012,IT,Corporate,Databarracks ,97336,"1,538.40",Online backup
12/11/2012,IT,Overheads,Atgill Ltd,97428,"2,448.00",Specialist IT support
07/11/2012,IT,Overheads,Atgill Ltd,97434,"1,776.00",Specialist IT support
07/11/2012,IT,Overheads,Atgill Ltd,97435,"1,776.00",Specialist IT support
07/11/2012,IT,Overheads,Atgill Ltd,97436,"1,776.00",Specialist IT support
07/11/2012,IT,Overheads,Atgill Ltd,97437,"1,776.00",Specialist IT support
19/11/2012,IT,Overheads,Geeks Ltd,98004,"8,100.00",Specialist IT support
19/11/2012,IT,Overheads,Geeks Ltd,98237,"8,100.00",Specialist IT support
26/11/2012,Legal & Professional,Corporate,Crowe Clark Whitehill,98028,"4,800.00",Audit Fee
30/11/2012,Legal & Professional,Corporate,Crowe Clark Whitehill,98198,655.20,PAYE Advice
22/11/2012,IT,Corporate,Push Studios,97675,"2,735.24",Specialist IT
29/11/2012,Legal & Professional,Professional Standards,Attwaters Jameson Hill,97977,"1,831.20",Professional Conduct Committee
01/11/2012,Legal & Professional,Professional Standards,Jonathan Goodwin Solicitors,96728,"11,400.00",Professional Conduct Committee
01/11/2012,Legal & Professional,Professional Standards,Jonathan Goodwin Solicitors,97318,"6,629.00",Professional Conduct Committee
20/11/2012,Legal & Professional,Professional Standards,Jonathan Goodwin Solicitors,97319,"6,395.70",Professional Conduct Committee
20/11/2012,Staff,Registration,Keystar Training,97659,780.00,Staff Development
13/11/2012,IT,Overheads,Metadigm,97470,"7,186.90",Specialist IT
13/11/2012,IT,Overheads,Metadigm,97998,"7,186.90",Specialist IT
21/11/2012,IT,Professional Standards,N2 Visual Communications Ltd,97669,"1,348.00",Printing
23/11/2012,IT,Corporate,N2 Visual Communications Ltd,97999,"19,770.00",Retention Fee mailing
01/11/2012,IT,Corporate,Premier IT Ltd,97396,"8,044.42",Specialist IT support
20/11/2012,IT,Corporate,Premier IT Ltd,97677,"3,192.00",Specialist IT support
30/11/2012,IT,Corporate,Redinet,100148,"1,080.00",Specialist IT support
12/11/2012,Postage,Corporate,Royal Mail Group ltd,97471,900.00,Postage
30/11/2012,Legal & Professional,Corporate,Russell - Cooke,98039,600.00,Legal advice
20/10/2166,Legal & Professional,Professional Standards,Ubiqus,97449,"1,114.20",Professional Conduct Committee
13/11/2012,Legal & Professional Fees,Professional Standards,Monro Wright & Wasborough LLP,97450,600.00,Title misuse
13/11/2012,Legal & Professional Fees,Professional Standards,Monro Wright & Wasborough LLP,97452,720.00,Title misuse
13/11/2012,Legal & Professional Fees,Professional Standards,Monro Wright & Wasborough LLP,97454,"3,492.00",Title misuse
13/11/2012,Legal & Professional Fees,Professional Standards,Monro Wright & Wasborough LLP,97457,960.00,Title misuse
13/11/2012,Legal & Professional Fees,Professional Standards,Monro Wright & Wasborough LLP,97458,"1,182.11",Title misuse
13/11/2012,Legal & Professional Fees,Professional Standards,Monro Wright & Wasborough LLP,97460,570.00,Title misuse
